bitfinex/quotes_ETHUSD_20241212
["timestamp","ask_amount","ask_price","bid_price","bid_amount"]
[1733997824437,0.20578816,3907.0,3905.8,3.97662059]
[1733997824630,0.3292616,3907.3,3905.9,1.3828]
[1733997824828,0.20581813,3907.2,3905.9,1.3828]
[1733997825029,1.2845,3907.5,3905.9,1.3828]
[1733997825229,0.20582556,3907.4,3906.0,0.53594206]
[1733997825430,0.20582556,3907.3,3906.0,0.53594206]
[1733997825630,1.2845,3907.5,3906.0,0.53594206]
[1733997825843,0.20583288,3907.4,3906.0,0.53594206]
[1733997826041,0.20583288,3907.3,3906.0,0.53594206]
[1733997826249,1.2845,3907.5,3906.1,0.55338517]
[1733997826565,0.20583409,3907.4,3906.1,0.55338517]
[1733997826747,0.20583409,3907.3,3906.1,0.55338517]
[1733997826941,1.2845,3907.5,3906.1,0.55338517]
[1733997827141,0.20584361,3907.4,3906.1,0.55338517]
[1733997827367,0.20584361,3907.3,3906.2,0.49361852]
[1733997827565,1.2845,3907.5,3906.2,0.49361852]
[1733997828226,0.20585018,3907.4,3906.2,0.49361852]
[1733997828476,0.20585018,3907.3,3906.2,0.49361852]
[1733997828688,1.2845,3907.5,3906.2,0.49361852]
[1733997828845,0.20587086,3907.4,3906.2,0.49361852]
[1733997829156,0.20587086,3907.3,3906.2,0.49361852]
[1733997829462,0.20588756,3907.2,3905.9,1.3828]
[1733997829627,0.55,3906.9,3905.9,1.3828]
[1733997829857,0.20588756,3906.8,3905.9,1.3828]
[1733997830061,0.20588756,3906.7,3905.9,1.3828]
[1733997830234,0.20588756,3906.7,3904.8,3.61510963]
[1733997830235,0.55,3906.5,3905.5,1.2744]
[1733997830428,0.55,3906.3,3905.5,1.2744]
[1733997830626,0.20578277,3906.2,3905.5,1.2744]
[1733997830929,0.3293603,3906.6,3905.5,1.2744]
[1733997831147,0.20580284,3906.5,3905.5,1.2744]
[1733997831358,0.24730479,3906.7,3905.5,1.2744]
[1733997831554,0.20577727,3906.6,3905.5,1.2744]
[1733997831857,0.24730479,3906.7,3905.5,1.2744]
[1733997831858,0.55,3906.4,3905.5,1.2744]
[1733997832060,1.60637727,3906.3,3904.9,1.3068]
[1733997832265,0.421415,3906.2,3904.9,1.3068]
[1733997832566,0.20577727,3906.1,3904.9,1.3068]
[1733997832721,0.21563773,3906.2,3904.9,1.3068]
[1733997832927,1.4006,3906.3,3904.9,1.3068]
[1733997833126,1.3107,3906.6,3904.9,1.3068]
[1733997833383,0.20584019,3906.5,3904.9,1.3068]
[1733997833586,0.20585505,3906.4,3904.9,1.3068]
[1733997833759,0.2058411,3906.3,3904.9,1.3068]
[1733997833966,0.68107,3906.5,3904.9,2.11210349]
[1733997834162,0.55,3906.3,3904.9,2.11210349]
[1733997834575,0.20586276,3906.2,3904.9,2.11210349]
[1733997834767,0.55,3906.4,3904.9,2.11210349]
[1733997835067,0.13107,3906.5,3904.9,2.11210349]
[1733997835068,0.405049,3906.3,3904.9,2.11210349]
[1733997835256,0.199177,3906.3,3904.9,2.11210349]
[1733997837392,0.20600021,3906.2,3904.9,2.11210349]
[1733997837589,0.199177,3906.3,3905.0,1.3008]
[1733997838582,0.55,3906.2,3905.0,1.3008]
[1733997840066,0.199177,3906.3,3905.0,1.79239096]
[1733997840285,0.199177,3906.3,3905.1,1.293]
[1733997841291,0.32967895,3906.9,3905.1,1.293]
[1733997841601,0.32967895,3907.2,3905.4,1.3751]
[1733997841802,0.14903709,3907.4,3905.4,1.3751]
[1733997841803,0.20628927,3907.1,3905.4,1.3751]
[1733997841980,0.14903709,3907.4,3905.4,1.3751]
[1733997842177,0.20630029,3907.3,3905.4,1.3751]
[1733997842413,0.37295403,3907.2,3905.6,1.3149]
[1733997842591,0.20630029,3907.1,3905.6,1.3149]
[1733997842780,0.16665374,3907.2,3905.6,1.3149]
[1733997843321,0.16665374,3907.2,3905.9,1.3248]
[1733997843817,0.16665374,3907.2,3905.4,1.3544]
[1733997843818,1.3326,3907.1,3905.4,1.3544]
[1733997844003,0.16665374,3907.2,3905.4,1.3544]
[1733997844004,7.08238956,3907.0,3905.4,1.3544]
[1733997844206,2.9758197,3906.8,3905.4,1.3544]
[1733997844408,0.55,3906.6,3905.4,1.3544]
[1733997844720,0.55,3906.4,3905.4,1.3544]
[1733997845020,0.20602673,3906.3,3905.4,1.3544]
[1733997845217,0.20602673,3906.2,3905.4,1.3544]
[1733997845514,0.55,3906.4,3905.4,1.3544]
[1733997845718,0.20611012,3906.3,3905.4,1.3544]
[1733997845962,0.33870243,3906.2,3905.4,1.3544]
[1733997846118,0.20612061,3906.6,3905.4,1.3544]
[1733997846296,0.20612061,3906.5,3905.4,1.3544]
[1733997846496,0.55,3906.7,3905.4,1.3544]
[1733997846730,0.20620406,3906.6,3905.4,1.3544]
[1733997846944,0.41841447,3906.5,3905.4,1.3544]
[1733997847240,0.20620406,3906.4,3905.4,1.3544]
[1733997847398,0.20620406,3906.3,3905.4,1.3544]
[1733997847599,0.20625048,3906.4,3905.4,1.3544]
[1733997847897,0.20625048,3906.3,3905.4,1.3544]
[1733997848098,0.21221041,3906.5,3905.4,1.3544]
[1733997848513,0.20628874,3906.4,3905.4,1.3544]
[1733997848718,0.21221041,3906.5,3905.4,1.3544]
[1733997848927,0.20631004,3906.4,3905.4,1.3544]
[1733997849129,0.21221041,3906.5,3905.4,1.3544]
[1733997849651,0.20631034,3906.4,3905.4,1.3544]
[1733997849831,0.21221041,3906.5,3905.4,1.3544]
[1733997850427,0.20644874,3906.4,3905.4,1.3544]
[1733997850611,0.20644874,3906.4,3903.6,9.04]
[1733997850612,4.8235,3905.4,3903.5,1.3099]
[1733997850952,0.55,3905.2,3903.5,1.3099]
[1733997851124,0.55,3905.0,3903.5,1.3099]
[1733997851318,0.20641987,3904.9,3903.5,1.3099]
[1733997851513,1.08650184,3904.8,3903.5,1.3099]
[1733997851814,0.55,3904.8,3903.5,1.3099]
[1733997852017,0.20606122,3904.7,3903.5,1.3099]
[1733997852242,0.87969796,3904.6,3903.5,1.3099]
[1733997852581,0.75606122,3904.6,3903.5,1.3099]
[1733997852876,0.55,3904.4,3903.5,1.3099]
[1733997853033,1.3661,3905.0,3903.5,1.3099]
[1733997853034,0.55,3904.7,3903.5,1.3099]
[1733997853215,0.55,3904.5,3903.5,1.3099]
[1733997853413,0.20577329,3904.4,3903.5,1.3099]
[1733997853956,0.20577329,3904.4,3902.2,0.52158691]
[1733997853957,1.3594,3904.2,3903.0,1.3856]
[1733997854119,0.41729062,3904.1,3903.0,1.3856]
[1733997854318,0.20577329,3904.0,3903.0,1.3856]
[1733997854551,0.41729062,3904.1,3903.0,1.3856]
[1733997854762,0.20577329,3904.0,3903.0,1.3856]
[1733997854925,0.32969796,3904.6,3903.0,1.3856]
[1733997855133,0.3903231,3904.6,3903.0,1.3856]
[1733997855465,0.18491252,3904.6,3903.0,1.3856]
[1733997856472,0.39025628,3904.6,3903.0,1.3856]
[1733997857322,0.18491252,3904.6,3903.0,1.3856]
[1733997857625,0.18491252,3904.6,3903.8,1.3996]
[1733997857783,0.20535686,3904.9,3903.8,1.3996]
[1733997857990,0.20535686,3904.8,3903.8,1.3996]
[1733997858170,0.20535745,3904.7,3903.8,1.3996]
[1733997858371,0.20535745,3904.9,3903.8,1.3996]
[1733997858676,0.55,3905.0,3903.8,1.3996]
[1733997858677,0.49737589,3904.8,3903.8,1.3996]
[1733997859000,0.75422697,3905.1,3904.0,1.3427]
[1733997859181,1.4129,3905.7,3904.0,1.3427]
[1733997859380,0.20543325,3905.6,3904.0,1.3427]
[1733997859716,0.20548648,3905.5,3904.0,1.3427]
[1733997860583,0.20548648,3905.8,3904.0,1.3427]
[1733997860782,0.3286932,3905.9,3904.2,3.45846052]
[1733997860979,0.3286932,3905.9,3904.3,1.3477]
[1733997860980,0.20556286,3905.8,3904.3,1.3477]
[1733997861413,0.3286932,3905.9,3904.4,1.3747]
[1733997862799,0.3286932,3905.9,3904.8,1.3174]
[1733997864522,0.55,3905.8,3904.8,1.3174]
[1733997864686,0.2786932,3905.9,3904.8,1.44914]
[1733997866402,1.9382,3905.8,3904.8,1.3174]
[1733997866822,0.55,3905.8,3904.8,1.3174]
[1733997869606,0.55,3906.1,3904.8,1.3174]
[1733997870231,0.55,3906.4,3904.8,1.3174]
[1733997870404,0.55,3906.2,3904.8,1.3174]
[1733997870606,0.20570501,3906.2,3904.8,1.3174]
[1733997870808,0.55,3906.2,3904.8,1.3174]
[1733997871328,0.75570501,3906.3,3904.8,1.3174]
[1733997871533,0.55,3906.3,3904.8,1.3174]
[1733997871732,0.55,3906.3,3904.5,2.84360081]
[1733997871733,0.75570501,3906.3,3905.0,1.3169]
[1733997871898,0.55,3906.3,3905.0,1.3169]
[1733997872097,1.3731,3906.8,3905.0,1.3169]
[1733997872098,0.55,3906.6,3905.0,1.3169]
[1733997872302,0.55,3906.4,3905.0,1.3169]
[1733997872497,0.20570501,3906.7,3905.0,1.3169]
[1733997872711,0.36358551,3906.6,3905.2,1.352]
[1733997872916,2.64152412,3907.7,3905.4,1.352]
[1733997872917,1.381,3907.3,3905.4,1.352]
[1733997873124,0.20286693,3907.2,3905.4,1.352]
[1733997873402,0.20287528,3907.1,3905.4,1.352]
[1733997873603,0.20287528,3907.0,3905.4,1.352]
[1733997873797,1.381,3907.3,3905.6,1.352]
[1733997873798,0.62538417,3907.2,3905.6,1.352]
[1733997874102,0.20292409,3907.1,3905.6,1.352]
[1733997874303,0.20292409,3907.0,3905.6,1.352]
[1733997874522,0.20289119,3907.1,3905.8,1.3069]
[1733997874835,0.20290076,3907.3,3906.0,1.3069]
[1733997875010,0.2029306,3907.7,3906.0,1.3069]
[1733997875211,0.2029306,3907.6,3906.0,1.3069]
[1733997875531,0.18226718,3907.6,3906.2,1.3163]
[1733997875941,3.90352051,3908.2,3906.2,1.3163]
[1733997875942,0.20287458,3907.7,3906.2,1.3163]
[1733997876118,0.3381243,3908.5,3906.3,1.3163]
[1733997876119,0.20287458,3908.0,3906.3,1.3163]
[1733997876323,0.32459932,3908.5,3906.2,3.0]
[1733997876324,0.20287458,3908.4,3906.4,1.3163]
[1733997876639,0.202806,3908.3,3906.4,1.3163]
[1733997876936,0.202806,3908.3,3906.6,1.3163]
[1733997876937,0.47402964,3908.3,3906.6,1.3163]
[1733997877098,0.202806,3908.2,3906.6,1.3163]
[1733997877298,0.55,3908.1,3906.6,1.3163]
[1733997877798,1.3694,3908.0,3906.6,1.3163]
[1733997878003,0.55,3907.7,3906.6,1.3163]
[1733997878234,0.55,3907.5,3906.6,1.3163]
[1733997878840,0.75265045,3907.5,3906.6,1.3163]
[1733997879198,0.55,3907.5,3906.6,1.3163]
[1733997880157,0.55,3907.8,3906.6,1.3163]
[1733997880352,0.75265045,3907.8,3906.6,1.3163]
[1733997880641,0.55,3907.6,3906.6,1.3163]
[1733997880943,0.20265045,3907.8,3906.6,1.3163]
[1733997881148,0.47402964,3908.3,3906.6,1.3163]
[1733997881298,0.20254225,3907.9,3906.6,1.3163]
[1733997881501,0.20254225,3908.2,3906.6,1.3163]
[1733997881731,1.60568014,3908.4,3906.6,1.3163]
[1733997882163,0.20258014,3908.4,3906.7,1.3996]
[1733997882353,0.20258014,3908.4,3906.6,3.0]
[1733997882354,0.20258014,3908.4,3906.9,1.3996]
[1733997882564,1.4031,3908.2,3906.9,1.3996]
[1733997882918,0.20258014,3908.1,3906.9,1.3996]
[1733997883441,0.55,3908.1,3906.9,1.3996]
[1733997883758,0.75258014,3908.1,3906.9,1.3996]
[1733997884141,0.53233256,3908.0,3906.9,1.3996]
[1733997884453,0.53233256,3908.0,3905.8,5.84360081]
[1733997884454,0.55,3907.4,3904.6,8.79]
[1733997884722,1.8644,3907.4,3906.5,1.2881]
[1733997884847,1.8644,3907.4,3905.0,2.84360081]
[1733997884848,0.47080008,3907.3,3906.2,1.2881]
[1733997885162,0.55,3907.2,3906.2,1.2881]
[1733997885862,0.7526542,3907.2,3906.2,1.2881]
[1733997886165,0.2026542,3907.1,3906.2,1.2881]
[1733997886366,0.2026542,3907.0,3906.2,1.2881]
[1733997886524,0.2026542,3906.9,3906.2,1.2881]
[1733997886725,0.7526542,3907.2,3906.2,1.2881]
[1733997886928,0.55,3907.0,3906.2,1.2881]
[1733997887156,0.55,3907.5,3906.2,1.2881]
[1733997887463,0.55,3907.3,3906.2,1.2881]
[1733997887656,0.2026542,3907.4,3906.2,1.2881]
[1733997887991,0.2026542,3907.9,3906.3,1.3001]
[1733997888171,0.20299805,3908.1,3906.3,1.42891]
[1733997888460,0.20299805,3908.0,3906.3,1.42891]
[1733997888664,0.20299805,3907.9,3906.3,1.42891]
[1733997888973,0.20299805,3907.8,3906.3,1.42891]
[1733997889188,0.32479688,3908.4,3906.5,1.3001]
[1733997889328,0.52787837,3908.3,3906.5,1.3001]
[1733997889666,0.20308149,3908.2,3906.5,1.3001]
[1733997889869,0.75308149,3908.1,3906.5,1.3001]
[1733997890032,0.55,3907.9,3906.6,1.5170991]
[1733997890241,0.55,3908.1,3906.6,1.3728]
[1733997890441,0.32479688,3908.6,3906.6,1.3728]
[1733997890641,0.52797063,3908.5,3906.6,1.3728]
[1733997890951,0.20317375,3908.4,3906.8,1.3139]
[1733997891149,0.32479688,3908.8,3906.8,1.3139]
[1733997891496,0.20320483,3908.7,3906.8,1.3139]
[1733997891692,0.20320483,3908.6,3906.8,1.3139]
[1733997892003,0.32479688,3908.8,3907.0,1.2762]
[1733997892004,0.75320483,3908.5,3907.0,1.2762]
[1733997892284,0.55,3908.3,3907.0,1.2762]
[1733997892491,0.20312256,3908.2,3907.0,1.2762]
[1733997892691,0.55,3908.5,3907.0,1.2762]
[1733997892990,0.20315052,3908.4,3907.1,1.5118318]
[1733997893169,0.16186969,3908.7,3907.1,1.3667]
[1733997893170,0.20315052,3908.3,3907.1,1.3667]
[1733997893376,0.20315052,3908.2,3907.1,1.50337]
[1733997893687,0.3249961,3908.6,3907.1,1.50337]
[1733997893888,0.52810426,3908.5,3907.1,1.50337]
[1733997894056,0.75310816,3908.4,3907.1,1.50337]
[1733997894253,0.55,3908.2,3907.1,1.50337]
[1733997894453,0.20310816,3908.1,3907.1,1.50337]
[1733997894662,0.8749961,3908.5,3907.1,1.50337]
[1733997894955,0.20309752,3908.4,3907.1,1.50337]
[1733997895191,0.20309752,3908.3,3907.3,1.3785]
[1733997895354,0.75309752,3908.2,3907.3,1.3785]
[1733997895692,0.20309752,3908.1,3907.3,1.3785]
[1733997895897,0.55,3908.5,3907.5,1.311]
[1733997896109,0.55,3908.3,3907.5,1.311]
[1733997896594,0.55,3908.5,3907.5,1.311]
[1733997896754,0.55,3908.3,3907.5,1.311]
[1733997896967,0.55,3908.6,3907.5,1.311]
[1733997897160,0.55,3908.4,3907.5,1.311]
[1733997897390,0.20324917,3908.3,3907.5,1.311]
[1733997897564,0.3249961,3909.1,3907.5,1.455885]
[1733997897885,1.47717906,3909.2,3907.5,1.455885]
[1733997897886,0.52822365,3909.0,3907.5,1.455885]
[1733997898082,0.52822365,3908.9,3907.5,1.455885]
[1733997898279,0.52822365,3908.8,3907.5,1.455885]
[1733997898503,0.3385376,3909.3,3907.5,1.455885]
[1733997898504,0.52822365,3908.7,3907.5,1.455885]
[1733997898664,0.52822365,3908.6,3907.7,1.3404]
[1733997898868,0.20322755,3908.5,3907.7,1.3404]
[1733997899119,0.32537754,3909.0,3907.7,1.3404]
[1733997899326,0.20340077,3908.9,3907.7,1.3404]
[1733997899478,0.55,3909.4,3907.9,1.4002]
[1733997899678,0.20340897,3908.9,3907.9,1.4002]
[1733997899896,0.5288753,3908.8,3907.9,1.4002]
[1733997900083,0.20340897,3908.7,3907.9,1.4002]
[1733997900263,0.15985248,3909.3,3908.0,0.15487989]
[1733997900264,0.20340897,3908.6,3908.0,0.15487989]
[1733997900601,0.20340897,3908.5,3907.9,1.4002]
[1733997900917,0.88901496,3909.4,3907.9,1.4002]
[1733997900918,0.52899589,3908.4,3907.9,1.4002]
[1733997901069,0.52898364,3908.3,3907.9,1.4002]
[1733997901268,0.20340897,3908.2,3907.9,1.4002]
[1733997901591,0.52911591,3908.1,3907.9,1.4002]
[1733997901900,0.52911591,3908.0,3907.9,1.4002]
[1733997902110,0.33901496,3908.6,3906.3,0.64870394]
[1733997902111,0.3393163,3908.6,3906.3,0.64870394]
[1733997902278,0.20358978,3908.0,3906.4,0.94387039]
[1733997902599,0.49920572,3908.4,3906.3,0.12538374]
[1733997902600,0.55,3907.8,3906.3,0.12538374]
[1733997902802,0.32574365,3907.7,3906.3,0.12538374]
[1733997903001,0.52933343,3907.6,3906.3,0.12538374]
[1733997903309,0.20358978,3907.5,3906.3,0.12538374]
[1733997903503,0.20358978,3907.4,3906.4,3.0]
[1733997903806,0.55,3908.0,3906.5,0.65815731]
[1733997904108,0.52972385,3907.9,3906.5,0.65815731]
[1733997904414,0.52972385,3907.8,3906.5,0.65815731]
[1733997904704,0.52972385,3907.7,3906.5,0.65815731]
[1733997904919,0.52972385,3907.6,3906.6,0.72397304]
[1733997905122,0.20373994,3907.5,3906.7,1.4014]
[1733997905417,0.55,3908.0,3906.6,0.72397304]
[1733997905418,0.55,3908.4,3906.9,1.3048]
[1733997905604,0.20377048,3907.4,3906.9,1.3048]
[1733997906019,0.33961747,3908.7,3906.9,1.3048]
[1733997906020,0.55,3908.6,3906.9,1.3048]
[1733997906319,0.55,3908.4,3906.9,1.3048]
[1733997906493,0.52997076,3908.3,3907.1,1.3048]
[1733997906690,0.52997076,3908.2,3907.1,1.3048]
[1733997906883,0.20383491,3908.1,3907.1,1.3048]
[1733997907117,0.55,3908.4,3907.1,1.3048]
[1733997907118,0.20383491,3908.0,3907.1,1.3048]
[1733997907416,0.20380806,3907.9,3907.3,1.3912]
[1733997907617,0.15987236,3908.5,3907.3,1.3912]
[1733997907920,0.5299014,3908.4,3907.3,1.3912]
[1733997908089,0.5299014,3908.3,3907.3,1.3912]
[1733997908423,0.5299014,3908.2,3907.3,1.3912]
[1733997908585,0.55,3908.6,3907.0,0.47609894]
[1733997908586,0.20380823,3908.1,3907.5,1.2872]
[1733997908947,0.20380823,3908.0,3907.5,1.2872]
[1733997909235,0.20386988,3907.9,3907.5,1.2872]
[1733997909386,0.15986844,3908.4,3907.5,1.2872]
[1733997909584,0.53012457,3908.3,3907.5,1.2872]
[1733997909823,0.53012457,3908.2,3907.5,1.2872]
[1733997909993,0.53012457,3908.1,3907.5,1.2872]
[1733997910196,0.20389421,3908.0,3907.5,1.2872]
[1733997910419,0.20389421,3908.0,3906.8,3.45618937]
[1733997910420,1.3307,3907.8,3905.5,2.13186357]
[1733997910598,0.88978314,3907.4,3905.6,1.3001]
[1733997910825,0.88978314,3907.1,3905.6,1.1001]
[1733997911122,0.55,3906.9,3905.6,1.1001]
[1733997911416,0.55,3906.7,3905.6,1.1001]
[1733997911620,0.53012406,3906.6,3905.6,1.1001]
[1733997911923,0.55,3906.4,3905.6,1.1001]
[1733997912126,0.52969115,3906.3,3905.6,1.1001]
[1733997912422,0.20389421,3906.2,3905.6,1.1001]
[1733997912627,0.20389421,3906.1,3905.6,1.1001]
[1733997912791,0.55,3906.5,3905.6,1.1001]
[1733997912987,0.20350965,3906.1,3905.6,1.1001]
[1733997913224,1.3654,3906.0,3904.0,8.79]
[1733997913422,1.89451875,3906.0,3904.1,1.22511894]
[1733997913589,0.52911875,3905.9,3903.9,3.46118937]
[1733997913802,0.32527137,3905.8,3904.0,1.3303]
[1733997914001,0.32525017,3905.7,3904.4,0.12492197]
[1733997914352,0.87523436,3905.6,3904.0,1.3303]
[1733997914631,0.20350721,3905.6,3904.1,0.13353]
[1733997914786,0.20350721,3905.6,3904.0,1.26383]
[1733997914988,0.20350721,3905.5,3904.3,0.005]
[1733997915388,0.20350721,3905.4,3904.3,0.005]
[1733997915587,0.55,3905.8,3904.3,0.005]
[1733997915823,0.55,3905.6,3904.3,0.005]
[1733997916120,0.20287962,3905.5,3904.3,0.005]
[1733997916322,0.20287962,3905.4,3904.3,0.005]
[1733997916526,0.20287962,3905.5,3904.3,0.005]
[1733997917423,0.55,3905.6,3904.3,0.005]
[1733997918795,0.22406344,3905.7,3904.4,1.3894]
[1733997919029,1.3654,3906.0,3904.5,0.13944]
[1733997919232,0.20350965,3906.1,3904.6,1.3894]
[1733997919893,1.73871801,3906.4,3904.6,1.3894]
[1733997919894,1.4131,3906.4,3904.6,1.3894]
[1733997923099,1.4131,3906.4,3904.4,1.3455]
[1733997924632,2.56037,3905.7,3904.4,4.3455]
[1733997924831,2.56037,3905.7,3904.5,0.74175177]
[1733997925051,2.56044,3905.6,3904.5,0.74175177]
[1733997925262,2.56044,3905.6,3904.6,1.4163]
[1733997925544,2.84455351,3906.3,3904.6,1.4163]
[1733997925545,2.56016,3906.0,3904.6,1.4163]
[1733997925724,2.56073,3905.2,3904.6,1.4163]
[1733997925895,2.56055,3905.4,3904.3,0.005]
[1733997926096,1.4003,3905.5,3904.3,0.005]
[1733997926097,6.80534351,3905.5,3904.3,0.005]
[1733997926311,1.4003,3905.3,3904.3,0.005]
[1733997926495,2.56121,3904.4,3904.3,0.005]
[1733997928908,2.56119,3904.5,3904.3,0.005]
[1733997929739,2.56121,3904.4,3904.3,0.005]
[1733997929911,3.86891,3904.4,3904.3,0.005]
[1733997931009,2.56121,3904.4,3904.3,0.005]
[1733997933307,3.91171,3904.4,3904.3,0.005]
[1733997934676,2.56106,3904.7,3903.9,0.005]
[1733997934677,2.56147,3904.0,3903.9,0.005]
[1733997935847,2.76362958,3904.0,3903.9,0.005]
[1733997936197,4.11952958,3904.0,3903.9,0.005]
[1733997937146,4.44303002,3904.0,3903.9,0.005]
[1733997937347,5.54474484,3904.0,3903.9,0.005]
[1733997937602,5.54474484,3904.0,3903.9,1e-05]
[1733997937747,5.70482456,3904.0,3903.9,1e-05]
[1733997937947,5.54474484,3904.0,3903.9,1e-05]
[1733997938839,5.70482002,3904.0,3903.9,1e-05]
[1733997939642,5.70482002,3904.0,3902.3,1.3976]
[1733997939643,1.3835,3903.6,3902.3,1.3976]
[1733997939983,2.56199,3903.3,3902.3,1.3976]
[1733997940192,0.20215958,3903.2,3902.3,1.3976]
[1733997940342,0.20215958,3903.1,3902.3,1.3976]
[1733997940545,0.20215958,3903.0,3902.3,1.3976]
[1733997940881,0.20215958,3902.9,3902.3,1.3976]
[1733997941087,0.256199,3903.2,3902.3,1.1976]
[1733997941269,0.20263656,3903.1,3902.3,1.1976]
[1733997941579,2.56187,3903.4,3902.3,1.1976]
[1733997941580,0.20263656,3903.0,3902.3,1.1976]
[1733997941780,4.84506189,3903.6,3902.3,1.1976]
[1733997942080,0.32427541,3903.2,3902.3,1.1976]
[1733997942268,0.20267213,3903.1,3902.3,1.1976]
[1733997942583,0.20267213,3903.0,3902.3,1.1976]
[1733997942787,0.20267213,3902.9,3902.3,1.1976]
[1733997942950,0.32429235,3903.3,3902.3,1.1976]
[1733997943150,0.52697203,3903.2,3902.3,1.1976]
[1733997943464,0.20267968,3903.1,3902.3,1.1976]
[1733997943662,0.20267968,3903.0,3902.3,1.1976]
[1733997943907,0.20267968,3902.9,3902.3,1.1976]
[1733997944185,0.20265074,3902.8,3902.3,1.1976]
[1733997944388,3.33505342,3903.3,3902.3,1.1976]
[1733997944574,0.86031388,3903.2,3902.3,1.1976]
[1733997944748,0.20261867,3903.1,3902.4,2.56251]
[1733997944950,0.20261867,3903.0,3902.3,1.1976]
[1733997945277,0.20261867,3902.9,3902.3,1.1976]
[1733997945487,0.20261867,3902.9,3902.2,0.005]
[1733997945488,1.4127,3902.8,3902.2,0.005]
[1733997945792,1.7367364,3902.8,3902.2,0.005]
[1733997945960,0.20252225,3902.7,3902.2,0.005]
[1733997946189,6.02404189,3902.5,3902.2,0.005]
[1733997946386,0.3238834,3902.4,3901.3,1.3818]
[1733997946768,4.38258714,3902.3,3901.3,1.3818]
[1733997946968,0.52638714,3902.2,3901.3,1.3818]
[1733997947200,0.52638714,3902.1,3901.3,1.3818]
[1733997947421,0.20250374,3902.0,3901.3,1.3818]
[1733997947628,0.20250374,3901.9,3901.3,1.3818]
[1733997948410,3.0888589,3901.9,3900.8,1.2843]
[1733997948631,3.0888589,3901.9,3900.0,2.56407]
[1733997948632,4.79654479,3901.9,3900.4,1.3803]
[1733997948915,4.79654479,3901.9,3900.6,0.51126394]
[1733997949271,4.79654479,3901.9,3900.4,1.3803]
[1733997949789,4.79654479,3901.9,3900.0,0.50798529]
[1733997949981,4.79654479,3901.9,3900.9,1.392]
[1733997950318,4.79654479,3901.9,3900.6,2.56368]
[1733997950319,4.79654479,3901.9,3900.6,1.392]
[1733997950540,5.13408188,3901.9,3900.6,1.392]
[1733997950670,2.563,3901.7,3900.6,0.5568341]
[1733997950871,0.5260089,3901.6,3900.6,0.5568341]
[1733997951071,4.27054589,3901.9,3900.6,0.5568341]
[1733997951072,0.5260089,3901.5,3900.6,0.5568341]
[1733997951319,0.20250374,3901.4,3900.6,3.1205141]
[1733997951469,7.12145101,3901.9,3900.6,3.1205141]
[1733997951470,0.20250374,3901.3,3900.6,3.1205141]
[1733997951669,0.20250374,3901.2,3900.6,3.1205141]
[1733997951867,0.32321875,3901.7,3900.6,0.5568341]
[1733997952108,2.56322,3901.4,3900.6,0.5568341]
[1733997952407,2.56322,3901.4,3899.5,2.56437]
[1733997952408,1.3971,3900.6,3899.0,0.50171936]
[1733997952606,2.56386,3900.4,3899.0,0.50171936]
[1733997953022,0.52485043,3900.3,3899.1,2.56469]
[1733997953224,0.20200534,3900.2,3899.1,0.30664094]
[1733997953405,0.20200534,3900.1,3899.6,2.56435]
[1733997953572,1.63003709,3901.0,3899.0,0.50171936]
[1733997953573,0.32282299,3900.8,3899.8,1.4161]
[1733997953808,0.20177479,3900.7,3899.8,1.4161]
[1733997954154,0.20178777,3900.6,3899.8,1.4161]
[1733997954358,0.32287229,3900.9,3899.8,1.814147]
[1733997954571,0.52474344,3900.8,3900.0,2.5641]
[1733997954708,1.2925,3901.0,3900.0,2.5641]
[1733997954709,0.20182927,3900.7,3900.0,2.5641]
[1733997955038,0.20182927,3900.6,3900.0,2.5641]
[1733997955245,1.2925,3901.0,3900.0,2.5641]
[1733997955404,0.52483678,3900.9,3900.0,2.5641]
[1733997955611,0.52483678,3900.8,3900.0,2.5641]
[1733997955815,1.73747649,3901.0,3900.0,2.5641]
[1733997956046,0.19634096,3900.9,3900.0,2.5641]
[1733997956233,0.51048402,3900.8,3899.8,1.4161]
[1733997956538,0.51040639,3900.7,3899.8,1.4161]
[1733997956741,0.19634096,3900.6,3899.8,1.4161]
[1733997957043,0.19634096,3900.5,3899.8,3.98033]
[1733997957212,1.2925,3901.0,3899.8,3.98033]
[1733997957213,0.19634096,3900.4,3899.8,3.98033]
[1733997957438,1.2925,3901.0,3899.8,3.98033]
[1733997957647,1.13126851,3900.9,3899.8,3.98033]
[1733997957807,0.51034231,3900.8,3899.8,1.4161]
[1733997958012,0.1962855,3900.7,3899.9,2.56416]
[1733997958214,1.2925,3901.0,3899.9,2.56416]
[1733997958215,0.1962855,3900.6,3899.9,2.56416]
[1733997958414,1.2925,3901.0,3899.9,2.56416]
[1733997958627,0.51051375,3900.9,3899.9,2.56416]
[1733997958862,0.19635144,3900.8,3900.7,3.89031]
[1733997959044,0.31429356,3901.5,3900.7,3.89031]
[1733997959248,0.19644313,3901.4,3900.7,3.89031]
[1733997959457,0.37677432,3901.8,3900.7,3.89031]
[1733997959751,0.51094287,3901.7,3900.7,3.89031]
[1733997959970,0.19651395,3901.6,3900.7,3.89031]
[1733997960160,0.19651395,3901.5,3900.7,3.89031]
[1733997960448,0.19651395,3901.4,3900.7,1.3267]
[1733997960623,0.19651395,3901.3,3900.7,3.89034]
[1733997960827,2.56291,3901.9,3900.7,3.89034]
[1733997961023,0.51100567,3901.8,3900.8,2.56356]
[1733997961262,0.42040449,3901.9,3900.8,2.56356]
[1733997961263,0.51100567,3901.7,3900.8,2.56356]
[1733997961464,0.19660749,3901.6,3900.9,2.56348]
[1733997961779,1.06044064,3902.0,3900.7,1.3267]
[1733997961975,1.06044064,3902.0,3900.8,2.56357]
[1733997961976,0.31460931,3901.9,3900.8,2.56357]
[1733997962175,0.31460931,3901.8,3901.0,2.56343]
[1733997962374,2.85090512,3902.7,3901.0,2.56343]
[1733997962375,0.32723494,3902.5,3901.1,0.256343]
[1733997962562,0.30547383,3902.4,3900.7,1.3267]